[Event "Titled Tuesday Blitz August 22 Late 2023"]
[White "Pein, Jonathan"]
[Black "Hjartarson, Johann"]
[WhiteFideId "417092"]
[BlackFideId "2300044"]
[WhiteElo "2463"]
[BlackElo "2686"]
[Result "1/2-1/2"]
[Round "7"]
[TimeControl "180+1"]
[Date "2023.08.22"]
[WhiteClock "0:00:11"]
[BlackClock "0:00:04"]
[Board "54"]

1. b3 {[%clk 0:03:00]}  Nf6 {[%clk 0:02:55]} 2. Bb2 {[%clk 0:03:01]}  g6 {[%clk 0:02:55]} 3. Bxf6 {[%clk 0:03:02]}  exf6 {[%clk 0:02:55]} 4. c4 {[%clk 0:03:03]}  Bg7 {[%clk 0:02:53]} 5. Nc3 {[%clk 0:03:03]}  f5 {[%clk 0:02:53]} 6. g3 {[%clk 0:03:04]}  O-O {[%clk 0:02:53]} 7. Bg2 {[%clk 0:03:05]}  d6 {[%clk 0:02:53]} 8. e3 {[%clk 0:03:05]}  c6 {[%clk 0:02:51]} 9. Nge2 {[%clk 0:03:06]}  Nd7 {[%clk 0:02:51]} 10. O-O {[%clk 0:03:06]}  Nf6 {[%clk 0:02:50]} 11. Rc1 {[%clk 0:03:06]}  Re8 {[%clk 0:02:50]} 12. b4 {[%clk 0:03:02]}  h5 {[%clk 0:02:49]} 13. h4 {[%clk 0:03:02]}  Ne4 {[%clk 0:02:39]} 14. d3 {[%clk 0:02:59]}  Nxc3 {[%clk 0:02:38]} 15. Nxc3 {[%clk 0:02:59]}  Bd7 {[%clk 0:02:34]} 16. b5 {[%clk 0:02:59]}  Qa5 {[%clk 0:02:26]} 17. Qb3 {[%clk 0:02:59]}  Rab8 {[%clk 0:02:23]} 18. a4 {[%clk 0:02:54]}  a6 {[%clk 0:02:20]} 19. d4 {[%clk 0:02:53]}  axb5 {[%clk 0:02:11]} 20. axb5 {[%clk 0:02:54]}  Ra8 {[%clk 0:02:11]} 21. Rb1 {[%clk 0:02:34]}  Qa3 {[%clk 0:02:08]} 22. bxc6 {[%clk 0:02:24]}  bxc6 {[%clk 0:02:08]} 23. Rfc1 {[%clk 0:02:17]}  Bf6 {[%clk 0:01:59]} 24. Qxa3 {[%clk 0:02:15]}  Rxa3 {[%clk 0:01:58]} 25. Rb7 {[%clk 0:02:15]}  Rd8 {[%clk 0:01:53]} 26. Rc7 {[%clk 0:01:53]}  Ra6 {[%clk 0:01:45]} 27. Rb1 {[%clk 0:01:46]}  Be8 {[%clk 0:01:35]} 28. Bf3 {[%clk 0:01:22]}  Rda8 {[%clk 0:01:31]} 29. Rbb7 {[%clk 0:01:19]}  Bd8 {[%clk 0:01:27]} 30. Rd7 {[%clk 0:01:04]}  Bxd7 {[%clk 0:01:22]} 31. Rxd7 {[%clk 0:01:05]}  Ba5 {[%clk 0:01:20]} 32. Ne2 {[%clk 0:00:59]}  Rd8 {[%clk 0:01:20]} 33. Rb7 {[%clk 0:00:51]}  Kf8 {[%clk 0:01:09]} 34. Nf4 {[%clk 0:00:52]}  Be1 {[%clk 0:01:06]} 35. Kf1 {[%clk 0:00:47]}  Bc3 {[%clk 0:00:58]} 36. Nh3 {[%clk 0:00:46]}  Re8 {[%clk 0:00:51]} 37. Ng5 {[%clk 0:00:43]}  Re7 {[%clk 0:00:50]} 38. Nh7+ {[%clk 0:00:42]}  Ke8 {[%clk 0:00:49]} 39. Nf6+ {[%clk 0:00:19]}  Kd8 {[%clk 0:00:49]} 40. Rb8+ {[%clk 0:00:16]}  Kc7 {[%clk 0:00:49]} 41. Rf8 {[%clk 0:00:16]}  Ra1+ {[%clk 0:00:45]} 42. Kg2 {[%clk 0:00:16]}  Ra2 {[%clk 0:00:44]} 43. Ne8+ {[%clk 0:00:15]}  Kd7 {[%clk 0:00:41]} 44. Nf6+ {[%clk 0:00:09]}  Ke6 {[%clk 0:00:41]} 45. Nh7 {[%clk 0:00:09]}  Be1 {[%clk 0:00:39]} 46. Bxc6 {[%clk 0:00:09]}  Rxf2+ {[%clk 0:00:36]} 47. Kg1 {[%clk 0:00:10]}  Ra2 {[%clk 0:00:28]} 48. Rd8 {[%clk 0:00:10]}  Bf2+ {[%clk 0:00:26]} 49. Kf1 {[%clk 0:00:09]}  Rea7 {[%clk 0:00:21]} 50. Re8+ {[%clk 0:00:05]}  Re7 {[%clk 0:00:20]} 51. Ng5+ {[%clk 0:00:05]}  Kf6 {[%clk 0:00:19]} 52. Nh7+ {[%clk 0:00:06]}  Kg7 {[%clk 0:00:15]} 53. Rxe7 {[%clk 0:00:05]}  Kxh7 {[%clk 0:00:12]} 54. Rxf7+ {[%clk 0:00:05]}  Kh6 {[%clk 0:00:12]} 55. Bd5 {[%clk 0:00:05]}  Bxg3 {[%clk 0:00:09]} 56. c5 {[%clk 0:00:05]}  dxc5 {[%clk 0:00:09]} 57. dxc5 {[%clk 0:00:06]}  Rc2 {[%clk 0:00:08]} 58. c6 {[%clk 0:00:07]}  Bxh4 {[%clk 0:00:07]} 59. c7 {[%clk 0:00:06]}  Bg3 {[%clk 0:00:07]} 60. e4 {[%clk 0:00:06]}  Rxc7 {[%clk 0:00:06]} 61. Rxc7 {[%clk 0:00:06]}  Bxc7 {[%clk 0:00:05]} 62. exf5 {[%clk 0:00:07]}  g5 {[%clk 0:00:05]} 63. f6 {[%clk 0:00:06]}  g4 {[%clk 0:00:04]} 64. f7 {[%clk 0:00:07]}  Bd6 {[%clk 0:00:04]} 65. Kg2 {[%clk 0:00:07]}  Kg5 {[%clk 0:00:05]} 66. Be6 {[%clk 0:00:07]}  h4 {[%clk 0:00:04]} 67. Bxg4 {[%clk 0:00:07]}  Kxg4 {[%clk 0:00:04]} 68. f8=Q {[%clk 0:00:08]}  Bxf8 {[%clk 0:00:03]} 69. Kh1 {[%clk 0:00:08]}  Be7 {[%clk 0:00:03]} 70. Kg1 {[%clk 0:00:09]}  Bd6 {[%clk 0:00:03]} 71. Kh1 {[%clk 0:00:10]}  Bc5 {[%clk 0:00:04]} 72. Kg2 {[%clk 0:00:10]}  h3+ {[%clk 0:00:04]} 73. Kh1 {[%clk 0:00:11]}  h2 {[%clk 0:00:04]} 74. Kxh2 {[%clk 0:00:11]} 1/2-1/2


[Site "https://www.chess.com"]

[Event "Titled Tuesday Blitz August 22 Late 2023"]
[White "Fernandez, Nelson Wilfredo"]
[Black "Troff, Kayden"]
[WhiteFideId "8401594"]
[BlackFideId "2047896"]
[WhiteElo "2531"]
[BlackElo "2744"]
[Result "0-1"]
[Round "7"]
[TimeControl "180+1"]
[Date "2023.08.22"]
[WhiteClock "0:00:00"]
[BlackClock "0:00:05"]
[Board "58"]

1. d4 {[%clk 0:03:00]}  Nf6 {[%clk 0:02:57]} 2. c4 {[%clk 0:02:59]}  g6 {[%clk 0:02:58]} 3. Nc3 {[%clk 0:02:59]}  d5 {[%clk 0:02:58]} 4. Bg5 {[%clk 0:02:57]}  Ne4 {[%clk 0:02:56]} 5. Bh4 {[%clk 0:02:54]}  Nxc3 {[%clk 0:02:56]} 6. bxc3 {[%clk 0:02:55]}  dxc4 {[%clk 0:02:56]} 7. Nf3 {[%clk 0:02:55]}  Bg7 {[%clk 0:02:53]} 8. e3 {[%clk 0:02:55]}  Be6 {[%clk 0:02:53]} 9. Qb1 {[%clk 0:02:55]}  b6 {[%clk 0:02:39]} 10. Ng5 {[%clk 0:02:43]}  Bd5 {[%clk 0:02:35]} 11. e4 {[%clk 0:02:41]}  Bb7 {[%clk 0:01:49]} 12. Bxc4 {[%clk 0:02:40]}  O-O {[%clk 0:01:47]} 13. O-O {[%clk 0:02:07]}  h6 {[%clk 0:01:16]} 14. Nf3 {[%clk 0:01:29]}  Nc6 {[%clk 0:01:09]} 15. a4 {[%clk 0:01:25]}  Na5 {[%clk 0:01:08]} 16. Ba2 {[%clk 0:01:24]}  c5 {[%clk 0:01:06]} 17. Qd3 {[%clk 0:01:15]}  Rc8 {[%clk 0:00:52]} 18. d5 {[%clk 0:00:49]}  c4 {[%clk 0:00:47]} 19. Qe3 {[%clk 0:00:46]}  Qd7 {[%clk 0:00:42]} 20. Nd4 {[%clk 0:00:24]}  e6 {[%clk 0:00:27]} 21. dxe6 {[%clk 0:00:17]}  fxe6 {[%clk 0:00:28]} 22. Rad1 {[%clk 0:00:16]}  Qf7 {[%clk 0:00:15]} 23. Nb5 {[%clk 0:00:15]}  Rc5 {[%clk 0:00:12]} 24. Nd6 {[%clk 0:00:14]}  Qc7 {[%clk 0:00:12]} 25. Nxb7 {[%clk 0:00:10]}  Qxb7 {[%clk 0:00:11]} 26. Bg3 {[%clk 0:00:09]}  Rcc8 {[%clk 0:00:07]} 27. Rd6 {[%clk 0:00:09]}  Rcd8 {[%clk 0:00:06]} 28. Rfd1 {[%clk 0:00:08]}  Rxd6 {[%clk 0:00:06]} 29. Rxd6 {[%clk 0:00:09]}  Qe7 {[%clk 0:00:06]} 30. Qd2 {[%clk 0:00:09]}  Rf7 {[%clk 0:00:04]} 31. h3 {[%clk 0:00:08]}  Kh7 {[%clk 0:00:04]} 32. Bb1 {[%clk 0:00:06]}  e5 {[%clk 0:00:04]} 33. Bc2 {[%clk 0:00:05]}  Bf8 {[%clk 0:00:03]} 34. Rd5 {[%clk 0:00:05]}  Bg7 {[%clk 0:00:03]} 35. Rd6 {[%clk 0:00:04]}  Nb7 {[%clk 0:00:04]} 36. Rd5 {[%clk 0:00:04]}  Nc5 {[%clk 0:00:04]} 37. f3 {[%clk 0:00:04]}  Qc7 {[%clk 0:00:03]} 38. Bf2 {[%clk 0:00:05]}  Nb7 {[%clk 0:00:03]} 39. Be3 {[%clk 0:00:05]}  Qc6 {[%clk 0:00:03]} 40. Rd6 {[%clk 0:00:05]}  Nxd6 {[%clk 0:00:03]} 41. Qf2 {[%clk 0:00:05]}  Nb7 {[%clk 0:00:03]} 42. Qh4 {[%clk 0:00:05]}  Nc5 {[%clk 0:00:04]} 43. g4 {[%clk 0:00:05]}  Qf6 {[%clk 0:00:04]} 44. g5 {[%clk 0:00:00]}  Qxf3 {[%clk 0:00:05]} 0-1


[Site "https://www.chess.com"]

[Event "Titled Tuesday Blitz August 22 Late 2023"]
[White "Tanenbaum, Zachary"]
[Black "Ozkan, Taha"]
[WhiteFideId "2060850"]
[BlackFideId "34577173"]
[WhiteElo "2703"]
[BlackElo "2536"]
[Result "0-1"]
[Round "7"]
[TimeControl "180+1"]
[Date "2023.08.22"]
[WhiteClock "0:00:00"]
[BlackClock "0:01:14"]
[Board "59"]

1. e4 {[%clk 0:03:00]}  e6 {[%clk 0:02:59]} 2. d4 {[%clk 0:03:01]}  d5 {[%clk 0:03:00]} 3. Nc3 {[%clk 0:03:01]}  Bb4 {[%clk 0:03:00]} 4. exd5 {[%clk 0:03:01]}  Bd6 {[%clk 0:03:00]} 5. Bb5+ {[%clk 0:02:25]}  c6 {[%clk 0:02:48]} 6. dxc6 {[%clk 0:02:22]}  bxc6 {[%clk 0:02:49]} 7. Bd3 {[%clk 0:02:14]}  Ne7 {[%clk 0:02:49]} 8. Nf3 {[%clk 0:02:12]}  Bb7 {[%clk 0:02:44]} 9. Ne4 {[%clk 0:02:09]}  Nd5 {[%clk 0:02:42]} 10. Nxd6+ {[%clk 0:02:01]}  Qxd6 {[%clk 0:02:43]} 11. Ne5 {[%clk 0:01:56]}  c5 {[%clk 0:02:40]} 12. Bb5+ {[%clk 0:01:54]}  Kf8 {[%clk 0:02:38]} 13. Qf3 {[%clk 0:01:50]}  f6 {[%clk 0:02:36]} 14. Qh5 {[%clk 0:01:31]}  Qe7 {[%clk 0:02:26]} 15. Ng6+ {[%clk 0:01:29]}  hxg6 {[%clk 0:02:27]} 16. Qxh8+ {[%clk 0:01:29]}  Kf7 {[%clk 0:02:28]} 17. Bd3 {[%clk 0:00:59]}  cxd4 {[%clk 0:02:09]} 18. Qh7 {[%clk 0:00:57]}  f5 {[%clk 0:02:09]} 19. Bh6 {[%clk 0:00:48]}  Qf6 {[%clk 0:02:09]} 20. h4 {[%clk 0:00:39]}  Nd7 {[%clk 0:02:07]} 21. g4 {[%clk 0:00:07]}  Nf8 {[%clk 0:02:01]} 22. Qh8 {[%clk 0:00:05]}  gxh6 {[%clk 0:02:01]} 23. Qxh6 {[%clk 0:00:05]}  fxg4 {[%clk 0:02:00]} 24. O-O-O {[%clk 0:00:05]}  Nf4 {[%clk 0:01:54]} 25. h5 {[%clk 0:00:03]}  gxh5 {[%clk 0:01:42]} 26. Rxh5 {[%clk 0:00:04]}  Nxh5 {[%clk 0:01:38]} 27. Qxh5+ {[%clk 0:00:05]}  Ke7 {[%clk 0:01:35]} 28. Qc5+ {[%clk 0:00:05]}  Kf7 {[%clk 0:01:33]} 29. Qh5+ {[%clk 0:00:05]}  Ke7 {[%clk 0:01:22]} 30. Qc5+ {[%clk 0:00:05]}  Kd8 {[%clk 0:01:23]} 31. Bb5 {[%clk 0:00:03]}  e5 {[%clk 0:01:20]} 32. c3 {[%clk 0:00:02]}  Rc8 {[%clk 0:01:14]} 33. Qxa7 {[%clk 0:00:03]}  Be4 {[%clk 0:01:14]} 34. Qa5+ {[%clk 0:00:00]}  Rc7 {[%clk 0:01:14]} 0-1


[Site "https://www.chess.com"]

[Event "Titled Tuesday Blitz August 22 Late 2023"]
[White "Rastbod, Ali"]
[Black "Loay, Sameer"]
[WhiteFideId "12567477"]
[BlackFideId "8104239"]
[WhiteElo "2682"]
[BlackElo "2523"]
[Result "0-1"]
[Round "7"]
[TimeControl "180+1"]
[Date "2023.08.22"]
[WhiteClock "0:00:51"]
[BlackClock "0:01:31"]
[Board "61"]

1. c4 {[%clk 0:02:46]}  Nf6 {[%clk 0:03:00]} 2. Nc3 {[%clk 0:02:46]}  g6 {[%clk 0:03:00]} 3. e4 {[%clk 0:02:46]}  Bg7 {[%clk 0:03:01]} 4. e5 {[%clk 0:02:47]}  Ng8 {[%clk 0:03:01]} 5. d4 {[%clk 0:02:47]}  c5 {[%clk 0:03:02]} 6. dxc5 {[%clk 0:02:46]}  Bxe5 {[%clk 0:03:00]} 7. Nf3 {[%clk 0:02:41]}  Bxc3+ {[%clk 0:03:00]} 8. bxc3 {[%clk 0:02:41]}  Nf6 {[%clk 0:03:00]} 9. Bh6 {[%clk 0:02:39]}  Qa5 {[%clk 0:02:59]} 10. Bg7 {[%clk 0:02:19]}  Qxc3+ {[%clk 0:02:49]} 11. Nd2 {[%clk 0:02:17]}  Rg8 {[%clk 0:02:49]} 12. Rc1 {[%clk 0:02:16]}  Qe5+ {[%clk 0:02:49]} 13. Be2 {[%clk 0:02:13]}  Rxg7 {[%clk 0:02:49]} 14. O-O {[%clk 0:02:14]}  Nc6 {[%clk 0:02:49]} 15. Nf3 {[%clk 0:02:14]}  Qxc5 {[%clk 0:02:49]} 16. Qd2 {[%clk 0:02:14]}  d6 {[%clk 0:02:47]} 17. Qh6 {[%clk 0:02:14]}  Rg8 {[%clk 0:02:48]} 18. Ng5 {[%clk 0:02:15]}  Be6 {[%clk 0:02:38]} 19. Rb1 {[%clk 0:02:14]}  O-O-O {[%clk 0:02:36]} 20. Rb5 {[%clk 0:02:14]}  Qa3 {[%clk 0:02:34]} 21. Rfb1 {[%clk 0:02:13]}  b6 {[%clk 0:02:33]} 22. Qh4 {[%clk 0:02:00]}  h6 {[%clk 0:02:22]} 23. Nxe6 {[%clk 0:01:45]}  fxe6 {[%clk 0:02:22]} 24. Qxh6 {[%clk 0:01:46]}  Nd4 {[%clk 0:02:20]} 25. R5b2 {[%clk 0:01:43]}  Nxe2+ {[%clk 0:02:14]} 26. Rxe2 {[%clk 0:01:44]}  e5 {[%clk 0:02:14]} 27. Rb3 {[%clk 0:01:42]}  Qc5 {[%clk 0:02:12]} 28. Qc1 {[%clk 0:01:38]}  Nd7 {[%clk 0:02:09]} 29. a4 {[%clk 0:01:37]}  Kb7 {[%clk 0:02:02]} 30. a5 {[%clk 0:01:35]}  Qxa5 {[%clk 0:01:59]} 31. Ra3 {[%clk 0:01:35]}  Qc5 {[%clk 0:01:58]} 32. Rea2 {[%clk 0:01:34]}  a5 {[%clk 0:01:58]} 33. Qb1 {[%clk 0:01:33]}  Kc7 {[%clk 0:01:52]} 34. Rb3 {[%clk 0:01:28]}  Rgf8 {[%clk 0:01:45]} 35. Rb5 {[%clk 0:01:26]}  Qc6 {[%clk 0:01:44]} 36. h3 {[%clk 0:01:14]}  Rf4 {[%clk 0:01:44]} 37. Qxg6 {[%clk 0:01:09]}  Rxc4 {[%clk 0:01:43]} 38. Rbb2 {[%clk 0:01:08]}  Qe4 {[%clk 0:01:35]} 39. Qh6 {[%clk 0:00:51]}  Qf4 {[%clk 0:01:31]} 0-1


[Site "https://www.chess.com"]

[Event "Titled Tuesday Blitz August 22 Late 2023"]
[White "Zhu, Jiner"]
[Black "WindWhistler11"]
[WhiteFideId "8608059"]
[WhiteElo "2662"]
[BlackElo "2498"]
[Result "1-0"]
[Round "7"]
[TimeControl "180+1"]
[Date "2023.08.22"]
[WhiteClock "0:00:23"]
[BlackClock "0:00:00"]
[Board "64"]

1. Nf3 {[%clk 0:03:00]}  d6 {[%clk 0:02:58]} 2. g3 {[%clk 0:02:58]}  f5 {[%clk 0:02:57]} 3. Bg2 {[%clk 0:02:59]}  Nf6 {[%clk 0:02:57]} 4. d4 {[%clk 0:02:59]}  g6 {[%clk 0:02:57]} 5. c4 {[%clk 0:02:59]}  Bg7 {[%clk 0:02:58]} 6. Nc3 {[%clk 0:02:59]}  O-O {[%clk 0:02:59]} 7. O-O {[%clk 0:02:59]}  Nc6 {[%clk 0:02:59]} 8. b3 {[%clk 0:02:45]}  Kh8 {[%clk 0:02:48]} 9. Bb2 {[%clk 0:02:37]}  e6 {[%clk 0:02:39]} 10. d5 {[%clk 0:02:35]}  Ne5 {[%clk 0:02:28]} 11. dxe6 {[%clk 0:02:35]}  Bxe6 {[%clk 0:02:27]} 12. Nd4 {[%clk 0:02:34]}  Bc8 {[%clk 0:02:26]} 13. Nd5 {[%clk 0:02:26]}  c6 {[%clk 0:02:06]} 14. Nxf6 {[%clk 0:02:23]}  Qxf6 {[%clk 0:02:04]} 15. Qc2 {[%clk 0:02:21]}  f4 {[%clk 0:02:01]} 16. Rad1 {[%clk 0:02:12]}  Bg4 {[%clk 0:01:51]} 17. Kh1 {[%clk 0:01:56]}  Rae8 {[%clk 0:01:44]} 18. Nf3 {[%clk 0:01:32]}  fxg3 {[%clk 0:01:24]} 19. fxg3 {[%clk 0:01:21]}  Bf5 {[%clk 0:01:18]} 20. e4 {[%clk 0:01:00]}  Bg4 {[%clk 0:00:44]} 21. Nxe5 {[%clk 0:00:48]}  Bxd1 {[%clk 0:00:43]} 22. Qxd1 {[%clk 0:00:38]}  Qe6 {[%clk 0:00:33]} 23. Nd3 {[%clk 0:00:34]}  Bxb2 {[%clk 0:00:23]} 24. Nxb2 {[%clk 0:00:35]}  Qe5 {[%clk 0:00:20]} 25. Nd3 {[%clk 0:00:35]}  Qd4 {[%clk 0:00:20]} 26. Qa1 {[%clk 0:00:29]}  Rxf1+ {[%clk 0:00:13]} 27. Qxf1 {[%clk 0:00:29]}  Kg7 {[%clk 0:00:12]} 28. Qe2 {[%clk 0:00:25]}  d5 {[%clk 0:00:08]} 29. cxd5 {[%clk 0:00:22]}  cxd5 {[%clk 0:00:00]} 30. e5 {[%clk 0:00:23]} 1-0


[Site "https://www.chess.com"]

[Event "Titled Tuesday Blitz August 22 Late 2023"]
[White "Di Berardino, Diego Rafael"]
[Black "Bazilius, Augustinas"]
[WhiteFideId "2105446"]
[BlackFideId "12832251"]
[WhiteElo "2635"]
[BlackElo "2460"]
[Result "1-0"]
[Round "7"]
[TimeControl "180+1"]
[Date "2023.08.22"]
[WhiteClock "0:00:10"]
[BlackClock "0:00:02"]
[Board "65"]

1. e4 {[%clk 0:03:00]}  c5 {[%clk 0:02:57]} 2. Nf3 {[%clk 0:02:59]}  Nc6 {[%clk 0:02:56]} 3. c3 {[%clk 0:02:56]}  Nf6 {[%clk 0:02:54]} 4. e5 {[%clk 0:02:55]}  Nd5 {[%clk 0:02:55]} 5. d4 {[%clk 0:02:55]}  cxd4 {[%clk 0:02:56]} 6. cxd4 {[%clk 0:02:53]}  d6 {[%clk 0:02:54]} 7. Bc4 {[%clk 0:02:53]}  Nb6 {[%clk 0:02:55]} 8. Bb5 {[%clk 0:02:52]}  dxe5 {[%clk 0:02:55]} 9. Nxe5 {[%clk 0:02:52]}  Bd7 {[%clk 0:02:56]} 10. Nxd7 {[%clk 0:02:52]}  Qxd7 {[%clk 0:02:56]} 11. Nc3 {[%clk 0:02:44]}  e6 {[%clk 0:02:55]} 12. O-O {[%clk 0:02:42]}  Be7 {[%clk 0:02:47]} 13. Qg4 {[%clk 0:02:42]}  Bf6 {[%clk 0:02:23]} 14. Be3 {[%clk 0:02:33]}  Nd5 {[%clk 0:02:12]} 15. Ne4 {[%clk 0:02:27]}  O-O {[%clk 0:02:00]} 16. Rad1 {[%clk 0:02:09]}  g6 {[%clk 0:01:48]} 17. Nxf6+ {[%clk 0:01:54]}  Nxf6 {[%clk 0:01:49]} 18. Qh4 {[%clk 0:01:52]}  Nd5 {[%clk 0:01:44]} 19. Bh6 {[%clk 0:01:52]}  Rfe8 {[%clk 0:01:34]} 20. Rfe1 {[%clk 0:01:46]}  a6 {[%clk 0:01:32]} 21. Bc4 {[%clk 0:01:29]}  Nce7 {[%clk 0:01:24]} 22. Bg5 {[%clk 0:01:04]}  Nf5 {[%clk 0:01:00]} 23. Qh3 {[%clk 0:01:03]}  b5 {[%clk 0:00:59]} 24. Bxd5 {[%clk 0:00:58]}  Qxd5 {[%clk 0:01:00]} 25. Bf6 {[%clk 0:00:56]}  Ng7 {[%clk 0:00:35]} 26. Re5 {[%clk 0:00:37]}  Nh5 {[%clk 0:00:07]} 27. Rxd5 {[%clk 0:00:30]}  exd5 {[%clk 0:00:07]} 28. Bg5 {[%clk 0:00:20]}  Rac8 {[%clk 0:00:06]} 29. g4 {[%clk 0:00:18]}  Ng7 {[%clk 0:00:06]} 30. Bf6 {[%clk 0:00:17]}  Rc2 {[%clk 0:00:04]} 31. Qh6 {[%clk 0:00:14]}  Ne6 {[%clk 0:00:04]} 32. Re1 {[%clk 0:00:14]}  Rc7 {[%clk 0:00:01]} 33. h4 {[%clk 0:00:10]}  Rec8 {[%clk 0:00:01]} 34. Kg2 {[%clk 0:00:07]}  Rd7 {[%clk 0:00:01]} 35. h5 {[%clk 0:00:07]}  Re8 {[%clk 0:00:01]} 36. hxg6 {[%clk 0:00:07]}  fxg6 {[%clk 0:00:02]} 37. Re5 {[%clk 0:00:05]}  Rf7 {[%clk 0:00:02]} 38. g5 {[%clk 0:00:03]}  Nc7 {[%clk 0:00:03]} 39. Rxe8+ {[%clk 0:00:03]}  Nxe8 {[%clk 0:00:03]} 40. Be5 {[%clk 0:00:03]}  Ng7 {[%clk 0:00:02]} 41. f4 {[%clk 0:00:03]}  Nf5 {[%clk 0:00:02]} 42. Qh3 {[%clk 0:00:04]}  Rb7 {[%clk 0:00:01]} 43. Qb3 {[%clk 0:00:05]}  Rd7 {[%clk 0:00:01]} 44. a4 {[%clk 0:00:05]}  Kf7 {[%clk 0:00:01]} 45. axb5 {[%clk 0:00:05]}  axb5 {[%clk 0:00:02]} 46. Qxb5 {[%clk 0:00:06]}  Re7 {[%clk 0:00:02]} 47. Qxd5+ {[%clk 0:00:05]}  Ke8 {[%clk 0:00:03]} 48. Qg8+ {[%clk 0:00:05]}  Kd7 {[%clk 0:00:03]} 49. Qd5+ {[%clk 0:00:06]}  Ke8 {[%clk 0:00:04]} 50. Qa8+ {[%clk 0:00:06]}  Kf7 {[%clk 0:00:04]} 51. d5 {[%clk 0:00:07]}  Ne3+ {[%clk 0:00:02]} 52. Kf3 {[%clk 0:00:07]}  Nc4 {[%clk 0:00:02]} 53. d6 {[%clk 0:00:07]}  Nxe5+ {[%clk 0:00:02]} 54. fxe5 {[%clk 0:00:07]}  Rxe5 {[%clk 0:00:03]} 55. Qb7+ {[%clk 0:00:08]}  Ke6 {[%clk 0:00:03]} 56. Qe7+ {[%clk 0:00:08]}  Kd5 {[%clk 0:00:03]} 57. Qxe5+ {[%clk 0:00:09]}  Kxe5 {[%clk 0:00:04]} 58. d7 {[%clk 0:00:10]}  Kf5 {[%clk 0:00:02]} 59. d8=Q {[%clk 0:00:10]} 1-0


[Site "https://www.chess.com"]